[Event "Titled Tuesday Blitz November 29 Early 2022"]
[White "Radjabov, Teimour"]
[Black "Berezin, Viktor"]
[WhiteFideId "13400924"]
[BlackFideId "14107872"]
[WhiteElo "2709"]
[BlackElo "2310"]
[Result "1-0"]
[Round "05"]
[TimeControl "180+1"]
[Date "2022.11.30"]
[WhiteClock "0:00:04"]
[BlackClock "0:00:01"]

1. Nf3 {[%clk 0:03:00]}  Nf6 {[%clk 0:02:58]} 2. c4 {[%clk 0:03:01]}  g6 {[%clk 0:02:54]} 3. Nc3 {[%clk 0:03:02]}  Bg7 {[%clk 0:02:54]} 4. g3 {[%clk 0:03:01]}  O-O {[%clk 0:02:55]} 5. Bg2 {[%clk 0:03:01]}  d6 {[%clk 0:02:55]} 6. d3 {[%clk 0:03:01]}  Nc6 {[%clk 0:02:56]} 7. O-O {[%clk 0:03:01]}  a6 {[%clk 0:02:56]} 8. Rb1 {[%clk 0:03:01]}  Rb8 {[%clk 0:02:56]} 9. b3 {[%clk 0:03:01]}  b5 {[%clk 0:02:56]} 10. Bb2 {[%clk 0:03:02]}  e5 {[%clk 0:02:54]} 11. Nd2 {[%clk 0:03:01]}  Bd7 {[%clk 0:02:53]} 12. Rc1 {[%clk 0:03:01]}  h5 {[%clk 0:02:49]} 13. h4 {[%clk 0:03:00]}  Nd4 {[%clk 0:02:44]} 14. e3 {[%clk 0:02:59]}  Ne6 {[%clk 0:02:44]} 15. Ba1 {[%clk 0:02:58]}  Nc5 {[%clk 0:02:43]} 16. Qe2 {[%clk 0:02:58]}  Bf5 {[%clk 0:02:42]} 17. Nde4 {[%clk 0:02:53]}  Nfxe4 {[%clk 0:02:34]} 18. Nxe4 {[%clk 0:02:50]}  Nxe4 {[%clk 0:02:31]} 19. dxe4 {[%clk 0:02:51]}  Bg4 {[%clk 0:02:29]} 20. Qd3 {[%clk 0:02:51]}  bxc4 {[%clk 0:02:27]} 21. Rxc4 {[%clk 0:02:48]}  Bd7 {[%clk 0:02:22]} 22. a4 {[%clk 0:02:41]}  Be6 {[%clk 0:02:22]} 23. Rc3 {[%clk 0:02:41]}  c5 {[%clk 0:02:12]} 24. Kh2 {[%clk 0:02:36]}  Rb6 {[%clk 0:02:09]} 25. f4 {[%clk 0:02:18]}  exf4 {[%clk 0:01:50]} 26. exf4 {[%clk 0:01:35]}  Bxc3 {[%clk 0:01:39]} 27. Qxc3 {[%clk 0:01:34]}  f6 {[%clk 0:01:39]} 28. f5 {[%clk 0:01:34]}  Rxb3 {[%clk 0:01:25]} 29. Qd2 {[%clk 0:01:33]}  gxf5 {[%clk 0:00:54]} 30. exf5 {[%clk 0:01:33]}  Bc4 {[%clk 0:00:42]} 31. Rc1 {[%clk 0:01:33]}  d5 {[%clk 0:00:40]} 32. Qh6 {[%clk 0:01:30]}  Qc7 {[%clk 0:00:37]} 33. Qg6+ {[%clk 0:01:10]}  Qg7 {[%clk 0:00:36]} 34. Rxc4 {[%clk 0:01:09]}  dxc4 {[%clk 0:00:27]} 35. Bd5+ {[%clk 0:01:09]}  Kh8 {[%clk 0:00:28]} 36. Qxh5+ {[%clk 0:01:06]}  Qh7 {[%clk 0:00:25]} 37. Qg4 {[%clk 0:00:47]}  Rd3 {[%clk 0:00:21]} 38. Bxc4 {[%clk 0:00:42]}  Rd2+ {[%clk 0:00:20]} 39. Kh3 {[%clk 0:00:43]}  Qg7 {[%clk 0:00:20]} 40. Qh5+ {[%clk 0:00:42]}  Qh7 {[%clk 0:00:20]} 41. Bxf6+ {[%clk 0:00:37]}  Rxf6 {[%clk 0:00:21]} 42. Qe8+ {[%clk 0:00:38]}  Kg7 {[%clk 0:00:19]} 43. Qe7+ {[%clk 0:00:38]}  Kh8 {[%clk 0:00:19]} 44. Qe8+ {[%clk 0:00:38]}  Kg7 {[%clk 0:00:19]} 45. Qe7+ {[%clk 0:00:38]}  Kh8 {[%clk 0:00:20]} 46. Qxf6+ {[%clk 0:00:39]}  Qg7 {[%clk 0:00:20]} 47. Qe6 {[%clk 0:00:33]}  Rf2 {[%clk 0:00:18]} 48. Qe4 {[%clk 0:00:20]}  Rd2 {[%clk 0:00:13]} 49. Qe6 {[%clk 0:00:15]}  Rf2 {[%clk 0:00:11]} 50. Qc8+ {[%clk 0:00:12]}  Kh7 {[%clk 0:00:11]} 51. Qxc5 {[%clk 0:00:12]}  Rf3 {[%clk 0:00:10]} 52. Qd6 {[%clk 0:00:12]}  Rc3 {[%clk 0:00:07]} 53. Bd3 {[%clk 0:00:12]}  Kg8 {[%clk 0:00:04]} 54. Qd8+ {[%clk 0:00:10]}  Qf8 {[%clk 0:00:04]} 55. Qd4 {[%clk 0:00:10]}  Rc7 {[%clk 0:00:03]} 56. f6 {[%clk 0:00:07]}  Qc8+ {[%clk 0:00:03]} 57. Kh2 {[%clk 0:00:07]}  Kf7 {[%clk 0:00:04]} 58. Qe5 {[%clk 0:00:05]}  Rd7 {[%clk 0:00:03]} 59. Bf5 {[%clk 0:00:04]}  Rd2+ {[%clk 0:00:03]} 60. Kh3 {[%clk 0:00:05]}  Qd8 {[%clk 0:00:03]} 61. Be6+ {[%clk 0:00:04]}  Kf8 {[%clk 0:00:03]} 62. Qg5 {[%clk 0:00:05]}  Ke8 {[%clk 0:00:01]} 63. Qg8# {[%clk 0:00:04]} 1-0


[Site "https://www.chess.com"]

[Event "Titled Tuesday Blitz November 29 Early 2022"]
[White "Rangel, Daniel"]
[Black "Chernobay, Artem"]
[WhiteFideId "2124475"]
[BlackFideId "4167406"]
[WhiteElo "2225"]
[BlackElo "2473"]
[Result "0-1"]
[Round "05"]
[TimeControl "180+1"]
[Date "2022.11.30"]
[WhiteClock "0:00:20"]
[BlackClock "0:00:31"]

1. d4 {[%clk 0:02:57]}  Nf6 {[%clk 0:02:59]} 2. c4 {[%clk 0:02:57]}  e6 {[%clk 0:02:59]} 3. Nc3 {[%clk 0:02:58]}  Bb4 {[%clk 0:02:59]} 4. e3 {[%clk 0:02:58]}  O-O {[%clk 0:02:58]} 5. Ne2 {[%clk 0:02:59]}  d5 {[%clk 0:02:58]} 6. a3 {[%clk 0:02:59]}  Bd6 {[%clk 0:02:56]} 7. Ng3 {[%clk 0:02:54]}  c6 {[%clk 0:02:51]} 8. Bd3 {[%clk 0:02:52]}  Nbd7 {[%clk 0:02:46]} 9. e4 {[%clk 0:02:46]}  e5 {[%clk 0:02:35]} 10. exd5 {[%clk 0:02:39]}  exd4 {[%clk 0:02:32]} 11. Nce4 {[%clk 0:02:38]}  cxd5 {[%clk 0:02:18]} 12. Nxd6 {[%clk 0:02:25]}  Qe7+ {[%clk 0:02:17]} 13. Qe2 {[%clk 0:02:05]}  Qxd6 {[%clk 0:02:17]} 14. Nf5 {[%clk 0:01:52]}  Qe5 {[%clk 0:01:53]} 15. Ne7+ {[%clk 0:01:50]}  Kh8 {[%clk 0:01:52]} 16. Nxd5 {[%clk 0:01:18]}  Nxd5 {[%clk 0:01:47]} 17. cxd5 {[%clk 0:01:19]}  Re8 {[%clk 0:01:36]} 18. Qxe5 {[%clk 0:01:09]}  Nxe5 {[%clk 0:01:29]} 19. Kd2 {[%clk 0:01:07]}  Nxd3 {[%clk 0:01:17]} 20. Kxd3 {[%clk 0:01:06]}  Bf5+ {[%clk 0:01:18]} 21. Kxd4 {[%clk 0:01:04]}  Rac8 {[%clk 0:00:56]} 22. Be3 {[%clk 0:00:39]}  b5 {[%clk 0:00:35]} 23. Rac1 {[%clk 0:00:23]}  Bc2 {[%clk 0:00:34]} 24. d6 {[%clk 0:00:20]}  Rc4+ {[%clk 0:00:30]} 25. Kd5 {[%clk 0:00:20]}  Be4# {[%clk 0:00:31]} 0-1


[Site "https://www.chess.com"]

[Event "Titled Tuesday Blitz November 29 Early 2022"]
[White "Rosen, Eric"]
[Black "Garagulya, Konstantin"]
[WhiteFideId "2032562"]
[BlackFideId "4128931"]
[WhiteElo "2362"]
[BlackElo "2329"]
[Result "1-0"]
[Round "05"]
[TimeControl "180+1"]
[Date "2022.11.30"]
[WhiteClock "0:00:17"]
[BlackClock "0:00:02"]

1. d4 {[%clk 0:03:00]}  Nf6 {[%clk 0:02:52]} 2. Bf4 {[%clk 0:02:58]}  e6 {[%clk 0:02:52]} 3. e3 {[%clk 0:02:58]}  c5 {[%clk 0:02:53]} 4. Nf3 {[%clk 0:02:58]}  Qb6 {[%clk 0:02:51]} 5. Na3 {[%clk 0:02:58]}  d5 {[%clk 0:02:49]} 6. Nb5 {[%clk 0:02:55]}  Na6 {[%clk 0:02:49]} 7. a4 {[%clk 0:02:55]}  c4 {[%clk 0:02:46]} 8. c3 {[%clk 0:02:51]}  Bd7 {[%clk 0:02:46]} 9. b3 {[%clk 0:02:51]}  cxb3 {[%clk 0:02:41]} 10. Qxb3 {[%clk 0:02:51]}  Be7 {[%clk 0:02:35]} 11. Bd3 {[%clk 0:02:50]}  O-O {[%clk 0:02:33]} 12. O-O {[%clk 0:02:50]}  Nh5 {[%clk 0:02:11]} 13. Be5 {[%clk 0:02:44]}  f6 {[%clk 0:02:10]} 14. a5 {[%clk 0:02:41]}  Qc6 {[%clk 0:01:22]} 15. Bf4 {[%clk 0:02:40]}  Nxf4 {[%clk 0:01:21]} 16. exf4 {[%clk 0:02:41]}  Nc7 {[%clk 0:01:08]} 17. Nxc7 {[%clk 0:02:30]}  Qxc7 {[%clk 0:01:09]} 18. c4 {[%clk 0:02:31]}  Qxf4 {[%clk 0:00:20]} 19. cxd5 {[%clk 0:02:30]}  Qd6 {[%clk 0:00:18]} 20. Bc4 {[%clk 0:02:25]}  exd5 {[%clk 0:00:18]} 21. Bxd5+ {[%clk 0:02:26]}  Kh8 {[%clk 0:00:19]} 22. Bxb7 {[%clk 0:02:14]}  Rab8 {[%clk 0:00:19]} 23. a6 {[%clk 0:02:14]}  Bc6 {[%clk 0:00:19]} 24. d5 {[%clk 0:02:15]}  Bxb7 {[%clk 0:00:18]} 25. axb7 {[%clk 0:02:13]}  Qb6 {[%clk 0:00:17]} 26. Qc4 {[%clk 0:01:05]}  Rxb7 {[%clk 0:00:14]} 27. Ra6 {[%clk 0:01:04]}  Qc5 {[%clk 0:00:09]} 28. Qe4 {[%clk 0:00:55]}  Rd7 {[%clk 0:00:06]} 29. Re6 {[%clk 0:00:48]}  Rfd8 {[%clk 0:00:05]} 30. Re1 {[%clk 0:00:32]}  Bf8 {[%clk 0:00:05]} 31. h4 {[%clk 0:00:19]}  Qxd5 {[%clk 0:00:05]} 32. Qg4 {[%clk 0:00:20]}  Kg8 {[%clk 0:00:02]} 33. h5 {[%clk 0:00:19]}  h6 {[%clk 0:00:02]} 34. Rxf6 {[%clk 0:00:17]} 1-0


[Site "https://www.chess.com"]

[Event "Titled Tuesday Blitz November 29 Early 2022"]
[White "Sadykov, Ramil"]
[Black "Akbas, Umut Ata"]
[WhiteFideId "24113590"]
[BlackFideId "44572646"]
[WhiteElo "2245"]
[BlackElo "2192"]
[Result "0-1"]
[Round "05"]
[TimeControl "180+1"]
[Date "2022.11.30"]
[WhiteClock "0:00:17"]
[BlackClock "0:00:15"]

1. e4 {[%clk 0:02:58]}  c5 {[%clk 0:02:54]} 2. Nf3 {[%clk 0:02:55]}  d6 {[%clk 0:02:54]} 3. d4 {[%clk 0:02:54]}  cxd4 {[%clk 0:02:55]} 4. Nxd4 {[%clk 0:02:55]}  Nf6 {[%clk 0:02:55]} 5. f3 {[%clk 0:02:55]}  e6 {[%clk 0:02:50]} 6. c4 {[%clk 0:02:54]}  Nc6 {[%clk 0:02:42]} 7. Nc3 {[%clk 0:02:53]}  Be7 {[%clk 0:02:34]} 8. Be2 {[%clk 0:02:47]}  O-O {[%clk 0:02:33]} 9. O-O {[%clk 0:02:45]}  d5 {[%clk 0:02:32]} 10. cxd5 {[%clk 0:02:18]}  exd5 {[%clk 0:02:31]} 11. exd5 {[%clk 0:02:17]}  Nb4 {[%clk 0:02:13]} 12. Kh1 {[%clk 0:01:43]}  Nbxd5 {[%clk 0:02:08]} 13. Bd2 {[%clk 0:01:31]}  Nxc3 {[%clk 0:02:06]} 14. Bxc3 {[%clk 0:01:32]}  Nd5 {[%clk 0:02:06]} 15. Bd2 {[%clk 0:01:32]}  Bf6 {[%clk 0:02:06]} 16. Bc1 {[%clk 0:01:23]}  Qb6 {[%clk 0:02:01]} 17. Nb3 {[%clk 0:01:21]}  Be6 {[%clk 0:02:01]} 18. Bd3 {[%clk 0:01:15]}  Rad8 {[%clk 0:01:55]} 19. Qe2 {[%clk 0:01:13]}  Rfe8 {[%clk 0:01:54]} 20. Be4 {[%clk 0:01:04]}  g6 {[%clk 0:01:33]} 21. Bd2 {[%clk 0:01:02]}  Nb4 {[%clk 0:01:26]} 22. Bc3 {[%clk 0:00:55]}  Bxc3 {[%clk 0:01:12]} 23. bxc3 {[%clk 0:00:56]}  Nd5 {[%clk 0:01:07]} 24. Rac1 {[%clk 0:00:45]}  Nf4 {[%clk 0:00:57]} 25. Qf2 {[%clk 0:00:42]}  Qxf2 {[%clk 0:00:38]} 26. Rxf2 {[%clk 0:00:43]}  Nd3 {[%clk 0:00:35]} 27. Bxd3 {[%clk 0:00:41]}  Rxd3 {[%clk 0:00:36]} 28. Nc5 {[%clk 0:00:35]}  Re3 {[%clk 0:00:36]} 29. Nxb7 {[%clk 0:00:23]}  Bxa2 {[%clk 0:00:26]} 30. Kg1 {[%clk 0:00:21]}  Bd5 {[%clk 0:00:15]} 31. c4 {[%clk 0:00:17]}  Bxb7 {[%clk 0:00:15]} 0-1


[Site "https://www.chess.com"]

[Event "Titled Tuesday Blitz November 29 Early 2022"]
[White "Sagita, Catur Adi"]
[Black "Ozen, Bahadir"]
[WhiteFideId "7104618"]
[BlackFideId "6337058"]
[WhiteElo "2232"]
[BlackElo "2503"]
[Result "0-1"]
[Round "05"]
[TimeControl "180+1"]
[Date "2022.11.30"]
[WhiteClock "0:02:46"]
[BlackClock "0:01:59"]

1. d4 {[%clk 0:03:00]}  d6 {[%clk 0:02:59]} 2. c4 {[%clk 0:02:59]}  Nf6 {[%clk 0:02:59]} 3. Nc3 {[%clk 0:02:59]}  Nbd7 {[%clk 0:03:00]} 4. e4 {[%clk 0:02:55]}  e5 {[%clk 0:03:00]} 5. Nf3 {[%clk 0:02:55]}  c6 {[%clk 0:02:59]} 6. Rg1 {[%clk 0:02:55]}  exd4 {[%clk 0:02:28]} 7. Nxd4 {[%clk 0:02:54]}  Nc5 {[%clk 0:02:28]} 8. f3 {[%clk 0:02:50]}  g6 {[%clk 0:02:20]} 9. Be3 {[%clk 0:02:47]}  Bg7 {[%clk 0:02:20]} 10. Qd2 {[%clk 0:02:47]}  O-O {[%clk 0:02:18]} 11. O-O-O {[%clk 0:02:46]}  Qe7 {[%clk 0:01:59]} 0-1


[Site "https://www.chess.com"]

[Event "Titled Tuesday Blitz November 29 Early 2022"]
[White "Salinas Herrera, Pablo"]
[Black "Chigaev, Maksim"]
[WhiteFideId "3407128"]
[BlackFideId "4108116"]
[WhiteElo "2843"]
[BlackElo "3010"]
[Result "0-1"]
[Round "05"]
[TimeControl "180+1"]
[Date "2022.11.30"]
[WhiteClock "0:00:08"]
[BlackClock "0:00:10"]

1. d4 {[%clk 0:03:00]}  Nf6 {[%clk 0:02:59]} 2. c4 {[%clk 0:02:59]}  g6 {[%clk 0:03:00]} 3. Nc3 {[%clk 0:02:58]}  d5 {[%clk 0:03:00]} 4. cxd5 {[%clk 0:02:59]}  Nxd5 {[%clk 0:03:01]} 5. Bd2 {[%clk 0:02:59]}  c5 {[%clk 0:03:00]} 6. dxc5 {[%clk 0:02:59]}  Bg7 {[%clk 0:03:00]} 7. Qb3 {[%clk 0:02:54]}  Be6 {[%clk 0:03:00]} 8. Qa3 {[%clk 0:02:47]}  Nc6 {[%clk 0:02:57]} 9. Nf3 {[%clk 0:02:45]}  O-O {[%clk 0:02:53]} 10. Rc1 {[%clk 0:02:26]}  Rb8 {[%clk 0:02:34]} 11. Nxd5 {[%clk 0:02:16]}  Qxd5 {[%clk 0:02:35]} 12. Bc3 {[%clk 0:01:06]}  Bxc3+ {[%clk 0:02:23]} 13. Qxc3 {[%clk 0:01:04]}  Qxa2 {[%clk 0:02:23]} 14. e3 {[%clk 0:01:01]}  b6 {[%clk 0:02:15]} 15. cxb6 {[%clk 0:01:01]}  Rxb6 {[%clk 0:02:14]} 16. Bd3 {[%clk 0:01:01]}  Rc8 {[%clk 0:02:03]} 17. O-O {[%clk 0:01:01]}  Qxb2 {[%clk 0:01:29]} 18. Qxb2 {[%clk 0:01:01]}  Rxb2 {[%clk 0:01:30]} 19. Ra1 {[%clk 0:01:02]}  Nb4 {[%clk 0:01:23]} 20. Be4 {[%clk 0:00:55]}  Ra2 {[%clk 0:01:23]} 21. Nd4 {[%clk 0:00:53]}  Bc4 {[%clk 0:01:16]} 22. Rfc1 {[%clk 0:00:52]}  Rxa1 {[%clk 0:01:08]} 23. Rxa1 {[%clk 0:00:53]}  a6 {[%clk 0:00:46]} 24. g4 {[%clk 0:00:52]}  Bb5 {[%clk 0:00:21]} 25. Rb1 {[%clk 0:00:50]}  Bd3 {[%clk 0:00:19]} 26. Bxd3 {[%clk 0:00:40]}  Nxd3 {[%clk 0:00:19]} 27. Ra1 {[%clk 0:00:41]}  Rc1+ {[%clk 0:00:15]} 28. Rxc1 {[%clk 0:00:39]}  Nxc1 {[%clk 0:00:16]} 29. Nc6 {[%clk 0:00:39]}  Kf8 {[%clk 0:00:16]} 30. Kf1 {[%clk 0:00:40]}  Nb3 {[%clk 0:00:12]} 31. Ke1 {[%clk 0:00:40]}  Nc5 {[%clk 0:00:13]} 32. Kd2 {[%clk 0:00:38]}  Ke8 {[%clk 0:00:14]} 33. f3 {[%clk 0:00:35]}  f6 {[%clk 0:00:14]} 34. Kc3 {[%clk 0:00:35]}  Kd7 {[%clk 0:00:14]} 35. Na5 {[%clk 0:00:35]}  Kc7 {[%clk 0:00:13]} 36. Kd4 {[%clk 0:00:32]}  Nb7 {[%clk 0:00:13]} 37. Nb3 {[%clk 0:00:30]}  Kc6 {[%clk 0:00:13]} 38. Kc4 {[%clk 0:00:28]}  a5 {[%clk 0:00:12]} 39. h4 {[%clk 0:00:26]}  e5 {[%clk 0:00:08]} 40. f4 {[%clk 0:00:20]}  exf4 {[%clk 0:00:07]} 41. exf4 {[%clk 0:00:21]}  Nd6+ {[%clk 0:00:08]} 42. Kc3 {[%clk 0:00:21]}  a4 {[%clk 0:00:08]} 43. Nd4+ {[%clk 0:00:21]}  Kd5 {[%clk 0:00:09]} 44. h5 {[%clk 0:00:14]}  Ne4+ {[%clk 0:00:07]} 45. Kd3 {[%clk 0:00:14]}  Nf2+ {[%clk 0:00:08]} 46. Kc3 {[%clk 0:00:14]}  Nxg4 {[%clk 0:00:08]} 47. hxg6 {[%clk 0:00:15]}  hxg6 {[%clk 0:00:09]} 48. f5 {[%clk 0:00:14]}  g5 {[%clk 0:00:09]} 49. Ne6 {[%clk 0:00:08]}  Ke5 {[%clk 0:00:10]} 50. Ng7 {[%clk 0:00:08]}  Ne3 {[%clk 0:00:10]} 0-1


[Site "https://www.chess.com"]

[Event "Titled Tuesday Blitz November 29 Early 2022"]
[White "Salman, Pavel"]
[Black "Zhu, Jiner"]
[WhiteFideId "24153753"]
[BlackFideId "8608059"]
[WhiteElo "2187"]
[BlackElo "2384"]
[Result "1-0"]
[Round "05"]
[TimeControl "180+1"]
[Date "2022.11.30"]
[WhiteClock "0:00:12"]
[BlackClock "0:00:42"]

1. Nf3 {[%clk 0:02:58]}  Nf6 {[%clk 0:02:58]} 2. g3 {[%clk 0:02:59]}  g6 {[%clk 0:02:58]} 3. Bg2 {[%clk 0:02:59]}  Bg7 {[%clk 0:02:59]} 4. O-O {[%clk 0:02:59]}  O-O {[%clk 0:02:59]} 5. d3 {[%clk 0:03:00]}  d6 {[%clk 0:02:59]} 6. Nbd2 {[%clk 0:03:01]}  e5 {[%clk 0:02:59]} 7. e4 {[%clk 0:03:01]}  Nc6 {[%clk 0:02:57]} 8. a4 {[%clk 0:03:02]}  h6 {[%clk 0:02:51]} 9. Nc4 {[%clk 0:03:01]}  Be6 {[%clk 0:02:51]} 10. Qe2 {[%clk 0:03:01]}  Nd7 {[%clk 0:02:46]} 11. c3 {[%clk 0:02:59]}  f5 {[%clk 0:02:42]} 12. Nh4 {[%clk 0:02:50]}  Kh7 {[%clk 0:02:42]} 13. exf5 {[%clk 0:02:50]}  gxf5 {[%clk 0:02:41]} 14. f4 {[%clk 0:02:27]}  Qe7 {[%clk 0:02:25]} 15. Qh5 {[%clk 0:02:11]}  e4 {[%clk 0:02:18]} 16. Ne3 {[%clk 0:01:48]}  Nf6 {[%clk 0:02:07]} 17. Qg6+ {[%clk 0:01:44]}  Kh8 {[%clk 0:02:03]} 18. Nexf5 {[%clk 0:01:37]}  Qd7 {[%clk 0:01:50]} 19. dxe4 {[%clk 0:01:23]}  Rae8 {[%clk 0:01:43]} 20. Nxh6 {[%clk 0:01:06]}  Ne7 {[%clk 0:01:41]} 21. Qg5 {[%clk 0:00:56]}  Nh7 {[%clk 0:01:35]} 22. Qh5 {[%clk 0:00:51]}  Nf6 {[%clk 0:01:34]} 23. Qg5 {[%clk 0:00:27]}  Nh7 {[%clk 0:01:34]} 24. Qh5 {[%clk 0:00:17]}  Rf6 {[%clk 0:01:32]} 25. f5 {[%clk 0:00:14]}  Bc4 {[%clk 0:01:23]} 26. Bg5 {[%clk 0:00:14]}  Bxf1 {[%clk 0:01:07]} 27. Rxf1 {[%clk 0:00:15]}  Ref8 {[%clk 0:01:02]} 28. Bxf6 {[%clk 0:00:15]}  Nxf6 {[%clk 0:00:58]} 29. Qg5 {[%clk 0:00:13]}  Nh7 {[%clk 0:00:57]} 30. Qe3 {[%clk 0:00:13]}  Qe8 {[%clk 0:00:56]} 31. Ng4 {[%clk 0:00:13]}  Nc6 {[%clk 0:00:53]} 32. Ng6+ {[%clk 0:00:12]}  Kg8 {[%clk 0:00:49]} 33. Nxf8 {[%clk 0:00:13]}  Nxf8 {[%clk 0:00:48]} 34. f6 {[%clk 0:00:13]}  Qg6 {[%clk 0:00:42]} 35. fxg7 {[%clk 0:00:12]} 1-0


[Site "https://www.chess.com"]

[Event "Titled Tuesday Blitz November 29 Early 2022"]
[White "Saravana, Krishnan P."]
[Black "Broca Jimenez, Fernando"]
[WhiteFideId "5018382"]
[BlackFideId "5104742"]
[WhiteElo "2155"]
[BlackElo "2062"]
[Result "1-0"]
[Round "05"]
[TimeControl "180+1"]
[Date "2022.11.30"]
[WhiteClock "0:01:56"]
[BlackClock "0:01:03"]

1. d4 {[%clk 0:02:54]}  Nf6 {[%clk 0:02:57]} 2. Nf3 {[%clk 0:02:53]}  e6 {[%clk 0:02:50]} 3. c4 {[%clk 0:02:49]}  b6 {[%clk 0:02:44]} 4. a3 {[%clk 0:02:48]}  Bb7 {[%clk 0:02:41]} 5. Nc3 {[%clk 0:02:47]}  Be7 {[%clk 0:02:39]} 6. Qc2 {[%clk 0:02:44]}  d5 {[%clk 0:02:38]} 7. cxd5 {[%clk 0:02:42]}  exd5 {[%clk 0:02:27]} 8. Bg5 {[%clk 0:02:41]}  O-O {[%clk 0:02:27]} 9. e3 {[%clk 0:02:37]}  Nbd7 {[%clk 0:02:26]} 10. Bd3 {[%clk 0:02:36]}  c5 {[%clk 0:02:27]} 11. O-O {[%clk 0:02:36]}  h6 {[%clk 0:02:26]} 12. Bh4 {[%clk 0:02:35]}  Rc8 {[%clk 0:02:20]} 13. Rad1 {[%clk 0:02:32]}  Re8 {[%clk 0:01:52]} 14. Bf5 {[%clk 0:02:27]}  c4 {[%clk 0:01:36]} 15. Ne5 {[%clk 0:02:24]}  a6 {[%clk 0:01:31]} 16. Bxf6 {[%clk 0:02:23]}  Bxf6 {[%clk 0:01:27]} 17. Nxd7 {[%clk 0:02:15]}  g6 {[%clk 0:01:13]} 18. Nxf6+ {[%clk 0:02:14]}  Qxf6 {[%clk 0:01:12]} 19. Bxc8 {[%clk 0:02:14]}  Bxc8 {[%clk 0:01:13]} 20. Nxd5 {[%clk 0:02:12]}  Qc6 {[%clk 0:01:09]} 21. e4 {[%clk 0:02:11]}  f5 {[%clk 0:01:09]} 22. f3 {[%clk 0:02:07]}  Bb7 {[%clk 0:01:09]} 23. Qd2 {[%clk 0:02:05]}  Kg7 {[%clk 0:01:09]} 24. Nc3 {[%clk 0:02:01]}  fxe4 {[%clk 0:01:05]} 25. fxe4 {[%clk 0:02:01]}  b5 {[%clk 0:01:03]} 26. d5 {[%clk 0:01:59]}  Qd6 {[%clk 0:01:03]} 27. Qd4+ {[%clk 0:01:58]}  Kh7 {[%clk 0:01:03]} 28. Rf7+ {[%clk 0:01:56]} 1-0


[Site "https://www.chess.com"]

[Event "Titled Tuesday Blitz November 29 Early 2022"]
[White "Schut, Han"]
[Black "Fernandez Garcia, Gumersindo"]
[WhiteFideId "1005561"]
[BlackFideId "24516740"]
[WhiteElo "2024"]
[BlackElo "2140"]
[Result "0-1"]
[Round "05"]
[TimeControl "180+1"]
[Date "2022.11.30"]
[WhiteClock "0:00:03"]
[BlackClock "0:00:14"]

1. e4 {[%clk 0:02:55]}  e5 {[%clk 0:02:59]} 2. Nf3 {[%clk 0:02:55]}  Nf6 {[%clk 0:02:59]} 3. Bc4 {[%clk 0:02:55]}  d5 {[%clk 0:02:43]} 4. exd5 {[%clk 0:02:53]}  e4 {[%clk 0:02:43]} 5. Ne5 {[%clk 0:02:51]}  Bd6 {[%clk 0:02:40]} 6. d4 {[%clk 0:02:51]}  O-O {[%clk 0:02:26]} 7. O-O {[%clk 0:02:39]}  Re8 {[%clk 0:02:21]} 8. f4 {[%clk 0:02:39]}  exf3 {[%clk 0:02:12]} 9. Nxf3 {[%clk 0:02:07]}  Bg4 {[%clk 0:02:11]} 10. Nc3 {[%clk 0:02:06]}  Nbd7 {[%clk 0:02:08]} 11. Bg5 {[%clk 0:02:04]}  Nb6 {[%clk 0:02:08]} 12. Bd3 {[%clk 0:01:50]}  h6 {[%clk 0:02:03]} 13. Bxf6 {[%clk 0:01:48]}  Qxf6 {[%clk 0:01:53]} 14. Ne4 {[%clk 0:01:48]}  Qf4 {[%clk 0:01:28]} 15. Nxd6 {[%clk 0:01:44]}  Qxd6 {[%clk 0:01:28]} 16. c4 {[%clk 0:01:42]}  Qb4 {[%clk 0:01:01]} 17. a3 {[%clk 0:01:31]}  Qxb2 {[%clk 0:00:59]} 18. Rf2 {[%clk 0:01:04]}  Qc3 {[%clk 0:00:50]} 19. Rc2 {[%clk 0:00:41]}  Qa5 {[%clk 0:00:42]} 20. h3 {[%clk 0:00:38]}  Bxf3 {[%clk 0:00:40]} 21. Qxf3 {[%clk 0:00:39]}  Re1+ {[%clk 0:00:40]} 22. Rxe1 {[%clk 0:00:38]}  Qxe1+ {[%clk 0:00:41]} 23. Kh2 {[%clk 0:00:39]}  Re8 {[%clk 0:00:41]} 24. Qf5 {[%clk 0:00:35]}  g6 {[%clk 0:00:37]} 25. Qf4 {[%clk 0:00:35]}  Qe3 {[%clk 0:00:31]} 26. Qxe3 {[%clk 0:00:31]}  Rxe3 {[%clk 0:00:32]} 27. Rd2 {[%clk 0:00:29]}  Nc8 {[%clk 0:00:30]} 28. Kg1 {[%clk 0:00:29]}  Nd6 {[%clk 0:00:30]} 29. Kf2 {[%clk 0:00:29]}  Re8 {[%clk 0:00:30]} 30. c5 {[%clk 0:00:30]}  Nc8 {[%clk 0:00:29]} 31. Bc4 {[%clk 0:00:28]}  Rd8 {[%clk 0:00:29]} 32. Re2 {[%clk 0:00:27]}  Kf8 {[%clk 0:00:29]} 33. Kf3 {[%clk 0:00:27]}  b6 {[%clk 0:00:29]} 34. g4 {[%clk 0:00:26]}  Ne7 {[%clk 0:00:29]} 35. Re5 {[%clk 0:00:23]}  Ng8 {[%clk 0:00:24]} 36. a4 {[%clk 0:00:18]}  Nf6 {[%clk 0:00:24]} 37. a5 {[%clk 0:00:18]}  Nd7 {[%clk 0:00:23]} 38. Re4 {[%clk 0:00:16]}  bxc5 {[%clk 0:00:24]} 39. dxc5 {[%clk 0:00:15]}  Nxc5 {[%clk 0:00:25]} 40. Rd4 {[%clk 0:00:15]}  Nd7 {[%clk 0:00:25]} 41. Kf4 {[%clk 0:00:14]}  f6 {[%clk 0:00:24]} 42. d6 {[%clk 0:00:14]}  cxd6 {[%clk 0:00:21]} 43. Rxd6 {[%clk 0:00:15]}  Ke7 {[%clk 0:00:20]} 44. Ra6 {[%clk 0:00:15]}  Ra8 {[%clk 0:00:19]} 45. Re6+ {[%clk 0:00:12]}  Kf8 {[%clk 0:00:18]} 46. Rd6 {[%clk 0:00:12]}  Rd8 {[%clk 0:00:15]} 47. Bb5 {[%clk 0:00:11]}  Ke7 {[%clk 0:00:14]} 48. Ra6 {[%clk 0:00:11]}  Ra8 {[%clk 0:00:13]} 49. Bc4 {[%clk 0:00:09]}  Rc8 {[%clk 0:00:13]} 50. Re6+ {[%clk 0:00:09]}  Kf8 {[%clk 0:00:12]} 51. Bd5 {[%clk 0:00:09]}  Rc5 {[%clk 0:00:12]} 52. Rd6 {[%clk 0:00:09]}  Ke7 {[%clk 0:00:11]} 53. Re6+ {[%clk 0:00:09]}  Kd8 {[%clk 0:00:12]} 54. Rd6 {[%clk 0:00:09]}  Kc7 {[%clk 0:00:12]} 55. Rxd7+ {[%clk 0:00:03]}  Kxd7 {[%clk 0:00:12]} 56. Bf7 {[%clk 0:00:03]}  g5+ {[%clk 0:00:12]} 57. Ke4 {[%clk 0:00:04]}  Kd6 {[%clk 0:00:13]} 58. a6 {[%clk 0:00:03]}  Re5+ {[%clk 0:00:13]} 59. Kd4 {[%clk 0:00:03]}  Ra5 {[%clk 0:00:14]} 60. Bc4 {[%clk 0:00:03]}  Ra3 {[%clk 0:00:14]} 61. h4 {[%clk 0:00:03]}  gxh4 {[%clk 0:00:14]} 0-1


[Site "https://www.chess.com"]